bitfinex/quotes_BTCUSD_20250303
["timestamp","ask_amount","ask_price","bid_price","bid_amount"]
[1740981780041,0.2870144,93455.0,93454.0,0.0001704]
[1740981780828,0.3644144,93455.0,93454.0,0.0001704]
[1740981780997,0.39601642,93455.0,93454.0,0.0001704]
[1740981781198,0.44131642,93455.0,93454.0,0.0001704]
[1740981781577,0.23551242,93455.0,93454.0,0.0001704]
[1740981781877,0.2069104,93455.0,93454.0,0.0001704]
[1740981783379,0.2039104,93455.0,93454.0,0.0001704]
[1740981783735,0.2059104,93455.0,93454.0,0.0001704]
[1740981784218,0.2019104,93455.0,93454.0,0.0001704]
[1740981784416,0.2029104,93455.0,93454.0,0.0001704]
[1740981788862,0.3313144,93455.0,93454.0,0.0001704]
[1740981789379,0.36293953,93455.0,93454.0,0.0001704]
[1740981791658,0.66293953,93455.0,93454.0,0.0001704]
[1740981791995,0.74383953,93455.0,93454.0,0.0001704]
[1740981792231,0.1275,93454.0,93425.0,0.00499]
[1740981792438,0.0466,93431.0,93425.0,0.00499]
[1740981792630,0.128449,93422.0,93418.0,0.0001704]
[1740981792835,0.07028,93430.0,93418.0,0.0001704]
[1740981792836,0.10190513,93430.0,93418.0,0.0001704]
[1740981792969,0.03162438,93429.0,93418.0,0.0001704]
[1740981793170,0.128451,93421.0,93418.0,0.0001704]
[1740981793369,0.128453,93419.0,93418.0,0.0001704]
[1740981794202,0.128453,93419.0,93418.0,0.0011704]
[1740981794630,0.128453,93419.0,93418.0,0.0001704]
[1740981794823,0.171267,93421.0,93418.0,0.0011704]
[1740981795028,0.18214073,93421.0,93418.0,0.0011704]
[1740981795229,0.01087373,93421.0,93418.0,0.0021704]
[1740981795411,0.128449,93422.0,93418.0,0.0021704]
[1740981796047,0.128452,93420.0,93418.0,0.0021704]
[1740981796206,0.171264,93423.0,93418.0,0.0011704]
[1740981796546,0.02125127,93419.0,93418.0,0.0001704]
[1740981796751,0.02125127,93419.0,93418.0,0.0011704]
[1740981797295,0.02125127,93419.0,93418.0,0.0001704]
[1740981797503,0.14970427,93419.0,93418.0,0.0001704]
[1740981797936,0.02125127,93419.0,93418.0,0.0001704]
[1740981798138,0.14970427,93419.0,93418.0,0.0011704]
[1740981798759,0.02125127,93419.0,93418.0,0.0011704]
[1740981800588,0.14970427,93419.0,93418.0,0.0011704]
[1740981803152,0.14970427,93419.0,93418.0,0.0001704]
[1740981803447,0.0498,93419.0,93418.0,0.0001704]
[1740981803650,0.178253,93419.0,93418.0,0.0001704]
[1740981803791,0.0498,93419.0,93418.0,0.0001704]
[1740981804394,0.178253,93419.0,93418.0,0.0001704]
[1740981804651,0.07084845,93419.0,93418.0,0.0001704]
[1740981805150,0.19930145,93419.0,93418.0,0.0001704]
[1740981807925,0.19730145,93419.0,93418.0,0.0001704]
[1740981808274,0.20230145,93419.0,93418.0,0.0001704]
[1740981809153,0.20130145,93419.0,93418.0,0.0001704]
[1740981809518,0.20430145,93419.0,93418.0,0.0001704]
[1740981809927,0.28140145,93419.0,93418.0,0.0001704]
[1740981812453,0.28140145,93419.0,93418.0,0.00057032]
[1740981813679,0.28083411,93419.0,93418.0,0.00057032]
[1740981814526,0.35155411,93419.0,93418.0,0.00057032]
[1740981819093,0.128478,93401.0,93400.0,0.01392046]
[1740981819224,0.176678,93401.0,93400.0,0.01392046]
[1740981820764,0.180678,93401.0,93400.0,0.01392046]
[1740981821399,0.176678,93401.0,93400.0,0.01392046]
[1740981821864,0.178678,93401.0,93400.0,0.01392046]
[1740981822566,0.182678,93401.0,93400.0,0.01392046]
[1740981823481,0.20378561,93401.0,93400.0,0.01392046]
[1740981824501,0.23537782,93401.0,93400.0,0.01392046]
[1740981825372,0.38993782,93401.0,93400.0,0.01392046]
[1740981825555,0.38793782,93401.0,93400.0,0.01392046]
[1740981825755,0.38393782,93401.0,93400.0,0.01392046]
[1740981826032,0.38893782,93401.0,93400.0,0.01392046]
[1740981826171,0.39593782,93401.0,93400.0,0.01392046]
[1740981827343,0.26745982,93401.0,93400.0,0.01392046]
[1740981827522,0.34773782,93401.0,93400.0,0.01392046]
[1740981828169,0.34773782,93401.0,93400.0,0.00692046]
[1740981832190,0.34773782,93401.0,93400.0,0.00709096]
[1740981832394,0.34807882,93401.0,93400.0,0.00709096]
[1740981833289,0.34681154,93401.0,93400.0,0.00709096]
[1740981834719,0.166901,93401.0,93400.0,0.54436996]
[1740981834864,0.166901,93401.0,93400.0,0.55499041]
[1740981835464,0.159901,93401.0,93400.0,0.55499041]
[1740981835711,0.154901,93401.0,93400.0,0.55499041]
[1740981835888,0.161901,93401.0,93400.0,0.55499041]
[1740981836091,0.166901,93401.0,93400.0,0.55499041]
[1740981836272,0.154901,93401.0,93400.0,0.55499041]
[1740981839218,0.154901,93401.0,93400.0,0.55511044]
[1740981839799,0.154901,93401.0,93400.0,0.41601099]
[1740981840023,0.154901,93401.0,93400.0,0.33431099]
[1740981840237,0.154901,93401.0,93400.0,0.00721099]
[1740981841100,0.283379,93401.0,93400.0,0.00721099]
[1740981841300,0.154901,93401.0,93392.0,0.07493599]
[1740981841501,0.156901,93401.0,93392.0,0.07493599]
[1740981841702,0.285379,93401.0,93392.0,0.07493599]
[1740981841908,0.154901,93401.0,93392.0,0.07493599]
[1740981842267,0.155901,93401.0,93392.0,0.07493599]
[1740981842447,0.154901,93401.0,93392.0,0.07493599]
[1740981842608,0.154901,93401.0,93396.0,0.128484]
[1740981842609,0.157901,93401.0,93396.0,0.128484]
[1740981842821,0.158901,93401.0,93394.0,0.128486]
[1740981843223,0.155901,93401.0,93396.0,0.128484]
[1740981843450,0.155901,93401.0,93394.0,0.128486]
[1740981843645,0.154901,93401.0,93394.0,0.128487]
[1740981844155,0.154901,93401.0,93395.0,0.3271]
[1740981844313,0.154901,93401.0,93395.0,0.455586]
[1740981844515,0.154901,93401.0,93395.0,0.3271]
[1740981844855,0.157901,93401.0,93395.0,0.3271]
[1740981845008,0.158901,93401.0,93395.0,0.3271]
[1740981845212,0.155901,93401.0,93395.0,0.3271]
[1740981845614,0.157901,93401.0,93395.0,0.3271]
[1740981845809,0.158901,93401.0,93395.0,0.3271]
[1740981846552,0.158901,93401.0,93396.0,0.128484]
[1740981846792,0.158901,93401.0,93395.0,0.455586]
[1740981847151,0.158901,93401.0,93395.0,0.3271]
[1740981847518,0.158901,93401.0,93400.0,0.128479]
[1740981847737,0.155901,93401.0,93400.0,0.128479]
[1740981847936,0.158901,93401.0,93400.0,0.128479]
[1740981848571,0.155901,93401.0,93400.0,0.128479]
[1740981848772,0.154901,93401.0,93400.0,0.128479]
[1740981848950,0.154901,93401.0,93398.0,0.128481]
[1740981849154,0.154901,93401.0,93395.0,0.3271]
[1740981849738,0.154901,93401.0,93397.0,0.128482]
[1740981849946,0.154901,93401.0,93398.0,0.3271]
[1740981855385,0.128479,93400.0,93398.0,0.3271]
[1740981855726,0.154901,93401.0,93398.0,0.3271]
[1740981855926,0.128481,93400.0,93398.0,0.3271]
[1740981856121,0.154901,93401.0,93398.0,0.3271]
[1740981856649,0.283379,93401.0,93398.0,0.3271]
[1740981857224,0.128479,93400.0,93398.0,0.3271]
[1740981857616,0.128481,93399.0,93398.0,0.3271]
[1740981858049,0.154901,93401.0,93398.0,0.3271]
[1740981858251,0.155901,93401.0,93398.0,0.31703839]
[1740981858626,0.128479,93400.0,93398.0,0.31703839]
[1740981858946,0.001,93399.0,93398.0,0.31703839]
[1740981859443,0.129481,93399.0,93398.0,0.31703839]
[1740981860193,0.128481,93399.0,93398.0,0.31703839]
[1740981860391,0.128481,93399.0,93398.0,0.27842746]
[1740981860392,0.208881,93399.0,93398.0,0.27842746]
[1740981860723,0.29044004,93399.0,93398.0,0.27842746]
[1740981861134,0.29144004,93399.0,93398.0,0.27842746]
[1740981861859,0.29144004,93399.0,93392.0,0.0001705]
[1740981861860,0.16295904,93399.0,93392.0,0.0001705]
[1740981862020,0.128489,93393.0,93392.0,0.0001705]
[1740981862884,0.16015387,93393.0,93392.0,0.0001705]
[1740981863067,0.16215387,93393.0,93392.0,0.0001705]
[1740981863716,0.23331387,93393.0,93392.0,0.0001705]
[1740981864056,0.10482487,93393.0,93392.0,0.0001705]
[1740981864489,0.10882487,93393.0,93392.0,0.0001705]
[1740981864667,0.11182487,93393.0,93392.0,0.0001705]
[1740981865102,0.10282487,93393.0,93392.0,0.0001705]
[1740981865323,0.13047002,93393.0,93392.0,0.0001705]
[1740981865560,0.13347002,93393.0,93392.0,0.0001705]
[1740981866099,0.13647002,93393.0,93392.0,0.0001705]
[1740981867062,0.13047002,93393.0,93392.0,0.0001705]
[1740981867648,0.25895902,93393.0,93392.0,0.0001705]
[1740981868048,0.26495902,93393.0,93392.0,0.0001705]
[1740981868248,0.13647002,93393.0,93392.0,0.0001705]
[1740981869043,0.13047002,93393.0,93390.0,0.0003408]
[1740981869306,0.03166487,93392.0,93390.0,0.0003408]
[1740981871890,0.03766487,93392.0,93390.0,0.0003408]
[1740981872235,0.006,93392.0,93390.0,0.0003408]
[1740981872435,0.009,93392.0,93390.0,0.0003408]
[1740981874348,0.03166389,93391.0,93390.0,0.0003408]
[1740981874878,0.03166389,93391.0,93383.0,0.00499]
[1740981875442,0.005,93391.0,93383.0,0.00499]
[1740981875652,0.008,93391.0,93383.0,0.00499]
[1740981875851,0.2216939,93393.0,93383.0,0.00499]
[1740981876115,0.03166426,93392.0,93383.0,0.00499]
[1740981876408,0.003,93391.0,93383.0,0.00499]
[1740981877178,0.008,93391.0,93383.0,0.00499]
[1740981877813,0.005,93391.0,93383.0,0.00499]
[1740981878112,0.15456,93390.0,93383.0,0.0051605]
[1740981879347,0.15756,93390.0,93383.0,0.0051605]
[1740981880288,0.291053,93390.0,93383.0,0.0051605]
[1740981880579,0.128498,93387.0,93383.0,0.0051605]
[1740981880756,0.128496,93389.0,93383.0,0.0051605]
[1740981881437,0.15756,93390.0,93383.0,0.0051605]
[1740981881671,0.16156,93390.0,93383.0,0.0051605]
[1740981882035,0.004,93389.0,93383.0,0.0051605]
[1740981882237,0.15456,93390.0,93383.0,0.0051605]
[1740981882616,0.15856,93390.0,93383.0,0.0051605]
[1740981882815,0.128494,93389.0,93383.0,0.0051605]
[1740981883028,0.15856,93390.0,93383.0,0.0051605]
[1740981883480,0.287053,93390.0,93383.0,0.0051605]
[1740981883891,0.15856,93390.0,93383.0,0.0051605]
[1740981884224,0.135494,93389.0,93383.0,0.0051605]
[1740981884355,0.128494,93389.0,93383.0,0.0051605]
[1740981884555,0.132494,93389.0,93383.0,0.0051605]
[1740981884752,0.16156,93390.0,93383.0,0.0051605]
[1740981885178,0.15856,93390.0,93383.0,0.0051605]
[1740981885584,0.007,93389.0,93383.0,0.0051605]
[1740981885783,0.011,93389.0,93383.0,0.0051605]
[1740981885960,0.007,93389.0,93383.0,0.0051605]
[1740981886977,0.128496,93388.0,93383.0,0.0051605]
[1740981887491,0.294054,93390.0,93383.0,0.0051605]
[1740981887492,0.128495,93389.0,93383.0,0.0051605]
[1740981887674,0.15456,93388.0,93383.0,0.0051605]
[1740981888475,0.15756,93388.0,93383.0,0.0051605]
[1740981888680,0.128501,93384.0,93383.0,0.0051605]
[1740981889209,0.16019048,93384.0,93383.0,0.0051605]
[1740981889590,0.20969048,93384.0,93383.0,0.0051605]
[1740981891167,0.21769048,93384.0,93383.0,0.0051605]
[1740981892055,0.08918948,93384.0,93383.0,0.0051605]
[1740981894554,0.21769048,93384.0,93383.0,0.0051605]
[1740981896305,0.21269048,93384.0,93383.0,0.0051605]
[1740981896730,0.21969048,93384.0,93383.0,0.0051605]
[1740981897158,0.21269048,93384.0,93383.0,0.0051605]
[1740981897383,0.21669048,93384.0,93383.0,0.0051605]
[1740981897659,0.22069048,93384.0,93383.0,0.0051605]
[1740981897866,0.21669048,93384.0,93383.0,0.0051605]
[1740981898304,0.22069048,93384.0,93383.0,0.0051605]
[1740981898811,0.22069048,93384.0,93383.0,0.00500994]
[1740981905096,0.09218948,93384.0,93383.0,0.00500994]
[1740981906419,0.22069048,93384.0,93383.0,0.00500994]
[1740981907015,0.37529048,93384.0,93383.0,0.00500994]
[1740981908830,0.24678948,93384.0,93383.0,0.00500994]
[1740981909743,0.37529048,93384.0,93383.0,0.00500994]
[1740981912118,0.36429048,93384.0,93383.0,0.00500994]
[1740981912261,0.36829048,93384.0,93383.0,0.00500994]
[1740981912617,0.37529048,93384.0,93383.0,0.00500994]
[1740981913374,0.37563128,93384.0,93383.0,0.00500994]
[1740981926096,0.45333128,93384.0,93383.0,0.00500994]
[1740981926522,0.45333128,93384.0,93370.0,0.2496574]
[1740981926523,0.128519,93371.0,93370.0,0.2496574]
[1740981926727,0.12852,93370.0,93369.0,0.0053308]
[1740981926931,0.16020948,93370.0,93369.0,0.0053308]
[1740981928246,0.17119653,93370.0,93369.0,0.0053308]
[1740981928458,0.17319653,93370.0,93369.0,0.0053308]
[1740981929333,0.17719653,93370.0,93369.0,0.0053308]
[1740981929538,0.17719653,93370.0,93365.0,0.0003408]
[1740981929539,0.128526,93366.0,93365.0,0.0003408]
[1740981929729,0.20551548,93366.0,93365.0,0.0003408]
[1740981929917,0.27583548,93366.0,93365.0,0.0003408]
[1740981930723,0.28283548,93366.0,93365.0,0.0003408]
[1740981930924,0.16030948,93366.0,93361.0,0.20699872]
[1740981931174,0.128531,93362.0,93361.0,0.20699872]
[1740981931374,0.16022048,93362.0,93361.0,0.20699872]
[1740981932505,0.16022048,93362.0,93361.0,0.20711884]
[1740981933164,0.16722048,93362.0,93361.0,0.00012012]
[1740981933641,0.16022048,93362.0,93361.0,0.00012012]
[1740981933992,0.16722048,93362.0,93361.0,0.00012012]
[1740981934536,0.17322048,93362.0,93361.0,0.00012012]
[1740981935493,0.16622048,93362.0,93361.0,0.00012012]
[1740981935734,0.16722048,93362.0,93361.0,0.00012012]
[1740981935891,0.16726048,93362.0,93361.0,0.00012012]
[1740981936101,0.16726048,93362.0,93361.0,0.00029062]
[1740981936306,0.16760148,93362.0,93361.0,0.00029062]
[1740981937133,0.17360148,93362.0,93361.0,0.00029062]
[1740981939508,0.47360148,93362.0,93361.0,0.00029062]
[1740981940022,0.55030148,93362.0,93361.0,0.00029062]
[1740981940340,0.54430148,93362.0,93361.0,0.00029062]
[1740981940742,0.60020148,93362.0,93361.0,0.00029062]
[1740981941555,0.59320148,93362.0,93361.0,0.00029062]
[1740981941932,0.60020148,93362.0,93361.0,0.00029062]
[1740981942135,0.59320148,93362.0,93361.0,0.00029062]
[1740981942563,0.58620148,93362.0,93361.0,0.00029062]
[1740981942763,0.59320148,93362.0,93361.0,0.00029062]
[1740981944141,0.60020148,93362.0,93361.0,0.00029062]
[1740981944906,0.70211792,93362.0,93361.0,0.00029062]
[1740981945133,0.64320148,93362.0,93361.0,0.00029062]
[1740981945283,0.84784148,93362.0,93361.0,0.00029062]
[1740981945450,0.85538233,93362.0,93361.0,0.00029062]
[1740981945873,0.86938233,93362.0,93361.0,0.00029062]
[1740981948025,0.3,93349.0,93331.0,0.24476294]
[1740981948228,0.128573,93332.0,93331.0,0.24488314]
[1740981948385,0.199133,93332.0,93331.0,0.24488314]
[1740981949948,0.07056,93332.0,93331.0,0.24488314]
[1740981950159,0.199133,93332.0,93331.0,0.24488314]
[1740981950504,0.203133,93332.0,93331.0,0.24488314]
[1740981950811,0.07456,93332.0,93331.0,0.24488314]
[1740981951014,0.357773,93332.0,93331.0,0.24488314]
[1740981951259,0.359773,93332.0,93331.0,0.24488314]
[1740981952903,0.23907572,93332.0,93331.0,0.24488314]
[1740981953199,0.36764872,93332.0,93331.0,0.24488314]
[1740981953559,0.26061049,93332.0,93331.0,0.24488314]
[1740981954203,0.38918349,93332.0,93331.0,0.24488314]
[1740981959842,0.38918349,93332.0,93331.0,0.22330314]
[1740981961283,0.38918349,93332.0,93331.0,0.00421314]
[1740981961515,0.38718349,93332.0,93331.0,0.00421314]
[1740981961987,0.38918349,93332.0,93331.0,0.00421314]
[1740981962188,0.44258349,93332.0,93331.0,0.00421314]
[1740981963371,0.43558349,93332.0,93331.0,0.00421314]
[1740981963707,0.42958349,93332.0,93331.0,0.00421314]
[1740981963939,0.43658349,93332.0,93331.0,0.00421314]
[1740981965084,0.44258349,93332.0,93331.0,0.00421314]
[1740981965505,0.47425501,93332.0,93331.0,0.00421314]
[1740981965703,0.77425501,93332.0,93331.0,0.00421314]
[1740981969634,0.88317145,93332.0,93331.0,0.00421314]
[1740981969840,0.76125501,93332.0,93331.0,0.00421314]
[1740981970253,0.76825501,93332.0,93331.0,0.00421314]
[1740981970485,0.428582,93325.0,93324.0,1e-08]
[1740981970646,0.428582,93325.0,93312.0,1e-08]
[1740981970647,0.128599,93313.0,93312.0,1e-08]
[1740981970837,0.16027052,93313.0,93312.0,1e-08]
[1740981971394,0.3,93315.0,93312.0,1e-08]
[1740981971635,0.128599,93313.0,93312.0,1e-08]
[1740981972013,0.16027769,93313.0,93312.0,1e-08]
[1740981972342,0.135599,93313.0,93312.0,1e-08]
[1740981972493,0.435599,93313.0,93312.0,1e-08]
[1740981972700,0.46700884,93313.0,93312.0,1e-08]
[1740981973305,0.442599,93313.0,93312.0,1e-08]
[1740981973646,0.47400564,93313.0,93312.0,1e-08]
[1740981973860,0.55590564,93313.0,93312.0,1e-08]
[1740981974190,0.12861,93305.0,93296.0,0.0001705]
[1740981974390,0.128621,93297.0,93296.0,0.0001705]
[1740981974601,0.13927427,93297.0,93296.0,0.00029072]
[1740981975004,0.29399427,93297.0,93296.0,0.00029072]
[1740981976242,0.29899427,93297.0,93296.0,0.00029072]
[1740981976686,0.30199427,93297.0,93296.0,0.00029072]
[1740981976892,0.291341,93297.0,93296.0,0.00029072]
[1740981977250,0.30197017,93297.0,93296.0,0.00029072]
[1740981978135,0.128627,93293.0,93288.0,0.01454085]
[1740981978344,0.128628,93292.0,93289.0,0.00057136]
[1740981978544,0.128631,93290.0,93289.0,0.00057136]
[1740981979358,0.004,93293.0,93289.0,0.00057136]
[1740981979581,0.128628,93292.0,93289.0,0.00057136]
[1740981979993,0.006,93293.0,93289.0,0.00057136]
[1740981980399,0.001,93290.0,93289.0,0.00057136]
[1740981980597,0.128631,93290.0,93289.0,0.00057136]
[1740981980779,0.131631,93290.0,93289.0,0.00057136]
[1740981982486,0.132631,93290.0,93289.0,0.00057136]
[1740981983407,0.131631,93290.0,93289.0,0.00057136]
[1740981983610,0.136631,93290.0,93289.0,0.00057136]
[1740981984011,0.133631,93290.0,93289.0,0.00057136]
[1740981984212,0.140631,93290.0,93289.0,0.00057136]
[1740981986545,0.135631,93290.0,93289.0,0.00057136]
[1740981986758,0.141631,93290.0,93289.0,0.00057136]
[1740981986903,0.134631,93290.0,93289.0,0.00057136]
[1740981987935,0.141631,93290.0,93289.0,0.00057136]
[1740981988962,0.134631,93290.0,93289.0,0.00057136]
[1740981989262,0.128631,93290.0,93289.0,0.00057136]
[1740981989409,0.134631,93290.0,93289.0,0.00057136]
[1740981989630,0.476431,93290.0,93289.0,0.00057136]
[1740981990053,0.483431,93290.0,93289.0,0.00057136]
[1740981990271,0.490431,93290.0,93289.0,0.00057136]
[1740981990746,0.483431,93290.0,93289.0,0.00057136]
[1740981990987,0.69776036,93290.0,93289.0,0.00057136]
[1740981991159,0.6537055,93290.0,93289.0,0.00057136]
[1740981991778,0.6467055,93290.0,93289.0,0.00057136]
[1740981992320,0.5967055,93290.0,93289.0,0.00057136]
[1740981992499,0.6037055,93290.0,93289.0,0.00057136]
[1740981993197,0.6537055,93290.0,93289.0,0.00057136]
[1740981993403,0.94644194,93290.0,93289.0,0.00057136]
[1740981993764,0.8875255,93290.0,93289.0,0.00057136]
[1740981994734,0.8875255,93290.0,93265.0,0.0797]
[1740981994735,0.171513,93287.0,93265.0,0.0797]
[1740981994882,0.128664,93266.0,93265.0,0.0797]
[1740981995113,0.199544,93266.0,93265.0,0.0797]
[1740981995890,0.128664,93266.0,93265.0,0.0797]
[1740981996092,0.201504,93266.0,93265.0,0.0797]
[1740981996656,0.07284,93266.0,93265.0,0.0797]
[1740981996957,0.002,93266.0,93265.0,0.0797]
[1740981997691,0.130664,93266.0,93265.0,0.0797]
[1740981998024,0.02763818,93266.0,93265.0,0.0797]
[1740981998543,0.15630218,93266.0,93265.0,0.0797]
[1740981999081,0.128667,93264.0,93253.0,0.01454085]
[1740981999287,0.18239818,93266.0,93253.0,0.01454085]
[1740981999448,0.171554,93265.0,93253.0,0.01454085]
[1740981999649,0.128667,93264.0,93253.0,0.01454085]
[1740981999962,0.128668,93263.0,93253.0,0.01454085]
[1740982000371,0.004,93264.0,93253.0,0.01454085]
[1740982000780,0.132667,93264.0,93253.0,0.01454085]
[1740982000963,0.129667,93264.0,93253.0,0.01454085]
[1740982001161,0.003,93263.0,93253.0,0.01454085]
[1740982001793,0.00304,93263.0,93253.0,0.01454085]
[1740982001983,0.00404,93263.0,93253.0,0.01454085]
[1740982002596,0.128676,93258.0,93253.0,0.01454085]
[1740982003002,0.175599,93263.0,93253.0,0.01454085]
[1740982003153,0.128674,93259.0,93253.0,0.01454085]
[1740982003354,0.171562,93261.0,93253.0,0.01454085]
[1740982003936,0.171562,93261.0,93253.0,0.01461828]
[1740982004118,0.128675,93258.0,93253.0,0.01461828]
[1740982004281,0.128673,93260.0,93253.0,0.01461828]
[1740982004488,0.12868,93254.0,93253.0,7.743e-05]
[1740982005384,0.07068,93255.0,93254.0,0.075]
[1740982005588,1.83058218,93266.0,93255.0,0.01454085]
[1740982005791,1.83058218,93266.0,93254.0,0.246574]
[1740982005792,0.07072,93262.0,93254.0,0.075]
[1740982006194,0.07084,93262.0,93254.0,0.07]
[1740982006496,0.128671,93261.0,93254.0,0.07]
[1740982006662,0.07084,93262.0,93254.0,0.07]
[1740982007460,0.004,93255.0,93254.0,0.19868]
[1740982007898,0.07084,93262.0,93254.0,0.19868]
[1740982008078,0.07784,93262.0,93254.0,0.19868]
[1740982008275,0.007,93262.0,93254.0,0.07]
[1740982008482,0.007,93262.0,93261.0,0.127671]
[1740982008781,4e-05,93263.0,93262.0,0.128669]
[1740982008977,4e-05,93263.0,93262.0,0.125669]
[1740982009293,4e-05,93263.0,93262.0,0.122669]
[1740982009641,4e-05,93263.0,93262.0,0.120669]
[1740982010341,4e-05,93263.0,93256.0,0.171569]
[1740982010546,0.004,93262.0,93261.0,0.128671]
[1740982010945,4e-05,93263.0,93259.0,0.171564]
[1740982011149,4e-05,93263.0,93262.0,0.128669]
[1740982011349,0.00404,93263.0,93262.0,0.128669]
[1740982011559,0.00404,93263.0,93258.0,0.128674]
[1740982011759,0.00204,93263.0,93258.0,0.128674]
[1740982011939,0.00204,93263.0,93256.0,0.128676]
[1740982012140,0.00404,93263.0,93255.0,0.33567772]
[1740982012447,0.00604,93263.0,93255.0,0.20699872]
[1740982012978,0.00804,93263.0,93255.0,0.20699872]
[1740982013158,0.128672,93261.0,93255.0,0.20699872]
[1740982013362,0.128678,93256.0,93255.0,0.20699872]
[1740982014704,0.128678,93256.0,93255.0,0.33567772]
[1740982014705,0.002,93256.0,93255.0,0.33567772]
[1740982015419,0.00204,93263.0,93258.0,0.128674]
[1740982015835,0.00204,93263.0,93259.0,0.128673]
[1740982015973,0.00204,93263.0,93256.0,0.17157]
[1740982016355,0.00204,93263.0,93256.0,0.128676]
[1740982016517,0.00204,93263.0,93255.0,0.20699872]
[1740982016703,0.004,93256.0,93255.0,0.37856972]
[1740982017095,0.00204,93263.0,93256.0,0.128677]
[1740982017289,0.00404,93263.0,93255.0,0.20699872]
[1740982017493,0.00404,93263.0,93255.0,0.33567772]
[1740982017729,0.00604,93263.0,93255.0,0.20699872]
[1740982017876,0.00204,93263.0,93255.0,0.20699872]
[1740982018092,0.002,93256.0,93255.0,0.20699872]
[1740982020246,0.0003814,93263.0,93255.0,0.20699872]
[1740982020488,0.0043814,93263.0,93255.0,0.20699872]
[1740982020860,0.0003814,93263.0,93255.0,0.20699872]
[1740982021285,0.002,93256.0,93255.0,0.20699872]
[1740982021654,0.0033814,93263.0,93255.0,0.33567772]
[1740982021826,0.0003814,93263.0,93255.0,0.20699872]
[1740982022051,0.128678,93256.0,93255.0,0.20799872]
[1740982022378,0.16017172,93256.0,93255.0,0.001]
[1740982023088,0.03149372,93256.0,93255.0,0.001]
[1740982023439,0.03149372,93256.0,93254.0,0.0001707]
[1740982023642,0.16017272,93255.0,93254.0,0.0001707]
[1740982024810,0.16417272,93255.0,93254.0,0.0001707]
[1740982025339,0.17017272,93255.0,93254.0,0.0001707]
[1740982026212,0.64901999,93255.0,93254.0,0.0001707]
[1740982026440,0.64517272,93255.0,93254.0,0.0001707]
[1740982027310,0.59517272,93255.0,93254.0,0.0001707]
[1740982027512,0.47868,93254.0,93253.0,0.00013071]
[1740982027816,0.51017372,93254.0,93253.0,0.00013071]
[1740982029057,0.51717372,93254.0,93253.0,0.00013071]
[1740982030209,0.52417372,93254.0,93253.0,0.00013071]
[1740982030563,0.51717372,93254.0,93253.0,0.00013071]
[1740982030894,0.51017372,93254.0,93253.0,0.00013071]
[1740982031098,0.52417372,93254.0,93253.0,0.00013071]
[1740982032466,0.63309016,93254.0,93253.0,0.00013071]
[1740982032822,0.51717372,93254.0,93253.0,0.00013071]
[1740982033265,0.52417372,93254.0,93253.0,0.00013071]
[1740982033650,0.51717372,93254.0,93253.0,0.00013071]
[1740982033820,0.52417372,93254.0,93253.0,0.00013071]
[1740982035074,0.47417372,93254.0,93253.0,0.00013071]
[1740982036080,0.57055129,93254.0,93253.0,0.00013071]
[1740982039544,0.57485329,93254.0,93253.0,0.00013071]
[1740982040973,0.47847572,93254.0,93253.0,0.00013071]
[1740982042110,0.68331572,93254.0,93253.0,0.00013071]
[1740982042236,0.86191572,93254.0,93253.0,0.00013071]
[1740982042433,0.81191572,93254.0,93253.0,0.00013071]
[1740982042991,0.80491572,93254.0,93253.0,0.00013071]
[1740982043216,0.79791572,93254.0,93253.0,0.00013071]
[1740982043391,0.80491572,93254.0,93253.0,0.00013071]
[1740982044161,0.81191572,93254.0,93253.0,0.00013071]
[1740982045808,0.05,93245.0,93222.0,0.005]
[1740982046014,0.128723,93223.0,93222.0,0.0050401]
[1740982046970,0.283563,93223.0,93222.0,0.0050401]
[1740982047379,0.15484,93223.0,93222.0,0.0050401]
[1740982047674,0.16184,93223.0,93222.0,0.0050401]
[1740982047877,0.16584,93223.0,93222.0,0.0050401]
[1740982048176,0.15484,93223.0,93222.0,0.0050401]
[1740982049338,0.283563,93223.0,93222.0,1e-08]
[1740982049508,0.294563,93223.0,93222.0,1e-08]
[1740982049890,0.15884,93223.0,93222.0,1e-08]
[1740982050296,0.32470407,93223.0,93213.0,0.0822]
[1740982050502,0.32470407,93223.0,93215.0,4.009e-05]
[1740982050503,0.128733,93216.0,93215.0,4.009e-05]
[1740982050828,0.428738,93212.0,93188.0,0.0487]
[1740982050956,0.33139478,93212.0,93188.0,0.0487]
[1740982051156,0.128751,93203.0,93202.0,8.608e-05]
[1740982051600,0.128759,93197.0,93188.0,0.0487]
[1740982051858,0.3,93204.0,93188.0,0.0487]
[1740982052027,0.0824,93200.0,93188.0,0.0487]
[1740982052231,0.171656,93210.0,93188.0,0.0487]
[1740982052232,0.00791041,93225.0,93188.0,0.0487]
[1740982052443,0.08236,93210.0,93188.0,0.0487]
[1740982052643,0.15484,93223.0,93197.0,0.00150217]
[1740982052644,0.00011972,93222.0,93197.0,0.00150217]
[1740982052838,0.02153215,93206.0,93199.0,0.0492]
[1740982053039,0.02153215,93206.0,93200.0,0.01991766]
[1740982053242,0.02153215,93206.0,93199.0,0.0492]
[1740982053424,0.02153215,93206.0,93200.0,0.0814]
[1740982054034,0.02253215,93206.0,93200.0,0.0814]
[1740982054375,0.02653215,93206.0,93200.0,0.0814]
[1740982054786,0.0200668,93205.0,93200.0,0.0814]
[1740982054984,0.0200668,93205.0,93200.0,0.09497706]
[1740982055900,0.0200668,93204.0,93200.0,0.09497706]
[1740982056737,0.004,93205.0,93200.0,0.09497706]
[1740982056944,0.001,93204.0,93200.0,0.09497706]
[1740982057148,0.001,93204.0,93201.0,0.02796097]
[1740982057547,0.005,93204.0,93201.0,0.02796097]
[1740982057811,0.004,93204.0,93200.0,0.0814]
[1740982058013,0.15488,93203.0,93200.0,0.0814]
[1740982059884,0.15588,93203.0,93200.0,0.0814]
[1740982060122,0.15892,93203.0,93200.0,0.0814]
[1740982060861,0.15592,93203.0,93200.0,0.0814]
[1740982060993,0.15592,93203.0,93201.0,0.07141126]
[1740982061196,0.15492,93203.0,93201.0,0.07141126]
[1740982061417,0.15592,93203.0,93201.0,0.07141126]
[1740982062267,0.15892,93203.0,93201.0,0.07141126]
[1740982062629,0.15592,93203.0,93201.0,0.07141126]
[1740982062836,0.15892,93203.0,93202.0,0.04798819]
[1740982063031,0.15792,93203.0,93202.0,0.04798819]
[1740982063232,0.15892,93203.0,93202.0,0.04798819]
[1740982063434,0.15592,93203.0,93202.0,0.04798819]